[Event "GER-ch Blitz 2019"]
[Site "Magdeburg"]
[Date "2019.05.25"]
[Round "20.11"]
[White "Braeuer, Franz"]
[Black "Schmaltz, Roland"]
[Result "0-1"]
[ECO "C41"]
[WhiteElo "2445"]
[BlackElo "2461"]
[Annotator "ChessBase"]
[PlyCount "122"]
[EventDate "2019.05.25"]
[EventType "tourn"]
[EventCountry "GER"]
[Tiebreak "Number of wins+Number of black wins"]
[SourceTitle "playchess.com"]
[Source "ChessBase"]
[SourceQuality "1"]
[TimeControl "180+2"]

1. e4 {[%emt 0:00:00]} d6 {[%emt 0:00:00]} 2. d4 {[%emt 0:00:02]} Nf6 {[%emt 0:
00:00]} 3. Nc3 {[%emt 0:00:01]} e5 {[%emt 0:00:01]} 4. Nf3 {[%emt 0:00:01]}
Nbd7 {[%emt 0:00:01]} 5. Bc4 {[%emt 0:00:00]} Be7 {[%emt 0:00:00]} 6. O-O {
[%emt 0:00:01]} O-O {[%emt 0:00:01]} 7. Re1 {[%emt 0:00:01]} a6 {[%emt 0:00:01]
} 8. a4 {[%emt 0:00:05]} b6 {[%emt 0:00:01]} 9. b3 {[%emt 0:00:07]} c6 {
[%emt 0:00:01]} 10. d5 {[%emt 0:00:10]} cxd5 {[%emt 0:00:20]} 11. Nxd5 {
[%emt 0:00:01]} Bb7 {[%emt 0:00:01]} 12. Ba3 {[%emt 0:00:13]} Nxd5 {[%emt 0:00:
08]} 13. Bxd5 {[%emt 0:00:01]} Bxd5 {[%emt 0:00:02]} 14. Qxd5 {[%emt 0:00:01]}
Qc7 {[%emt 0:00:06]} 15. c4 {[%emt 0:00:27]} Nf6 {[%emt 0:00:14]} 16. Qd3 {
[%emt 0:00:01]} Rfd8 {[%emt 0:00:04]} 17. Nd2 {[%emt 0:00:06]} Qb7 {[%emt 0:00:
02]} 18. Bb2 {[%emt 0:00:23]} Nd7 {[%emt 0:00:11]} 19. Nf1 {[%emt 0:00:10]} Nc5
{[%emt 0:00:05]} 20. Qc2 {[%emt 0:00:00]} Bg5 {[%emt 0:00:03]} 21. g3 {[%emt 0:
00:34]} Rac8 {[%emt 0:00:08]} 22. h4 {[%emt 0:00:01]} Bh6 {[%emt 0:00:02]} 23.
Nh2 {[%emt 0:00:24]} b5 {[%emt 0:00:02]} 24. axb5 {[%emt 0:00:06]} axb5 {
[%emt 0:00:01]} 25. Ng4 {[%emt 0:00:02]} bxc4 {[%emt 0:00:02]} 26. Nxh6+ {
[%emt 0:00:04]} gxh6 {[%emt 0:00:01]} 27. bxc4 {[%emt 0:00:00]} Qb3 {[%emt 0:
00:09]} 28. Qe2 {[%emt 0:00:23]} Rb8 {[%emt 0:00:17]} 29. Qg4+ {[%emt 0:00:13]}
Kh8 {[%emt 0:00:02]} 30. Rab1 {[%emt 0:00:01]} Qxc4 {[%emt 0:00:06]} 31. Rbc1 {
[%emt 0:00:11]} Qe6 {[%emt 0:00:02]} 32. Qe2 {[%emt 0:00:04]} Rb3 {[%emt 0:00:
09]} 33. Bc3 {[%emt 0:00:06]} Rg8 {[%emt 0:00:05]} 34. Red1 {[%emt 0:00:03]}
Rg6 {[%emt 0:00:06]} 35. Bd2 {[%emt 0:00:03]} Qh3 {[%emt 0:00:09]} 36. Be3 {
[%emt 0:00:02]} Nxe4 {[%emt 0:00:03]} 37. Qc4 {[%emt 0:00:01]} Rxe3 {[%emt 0:
00:06]} 38. Qc8+ {[%emt 0:00:01]} Qxc8 {[%emt 0:00:01]} 39. Rxc8+ {[%emt 0:00:
00]} Kg7 {[%emt 0:00:01]} 40. fxe3 {[%emt 0:00:01]} Rxg3+ {[%emt 0:00:02]} 41.
Kh2 {[%emt 0:00:03]} Rxe3 {[%emt 0:00:01]} 42. Rg1+ {[%emt 0:00:03]} Kf6 {
[%emt 0:00:03]} 43. Rf1+ {[%emt 0:00:03]} Ke6 {[%emt 0:00:01]} 44. Rc7 {
[%emt 0:00:01]} f6 {[%emt 0:00:01]} 45. Rxh7 {[%emt 0:00:02]} Re2+ {[%emt 0:00:
03]} 46. Kh3 {[%emt 0:00:01]} Re3+ {[%emt 0:00:02]} 47. Kh2 {[%emt 0:00:01]} d5
{[%emt 0:00:02]} 48. Rxh6 {[%emt 0:00:01]} d4 {[%emt 0:00:01]} 49. Rg6 {
[%emt 0:00:05]} d3 {[%emt 0:00:01]} 50. Rg2 {[%emt 0:00:01]} f5 {[%emt 0:00:08]
} 51. h5 {[%emt 0:00:01]} Nf6 {[%emt 0:00:04]} 52. Rg6 {[%emt 0:00:04]} Re2+ {
[%emt 0:00:07]} 53. Kg3 {[%emt 0:00:01]} f4+ {[%emt 0:00:01]} 54. Kf3 {[%emt 0:
00:01]} Re3+ {[%emt 0:00:03]} 55. Kf2 {[%emt 0:00:02]} Kf5 {[%emt 0:00:01]} 56.
Rd1 {[%emt 0:00:04]} Nxh5 {[%emt 0:00:04]} 57. Rd6 {[%emt 0:00:01]} e4 {
[%emt 0:00:05]} 58. Rd5+ {[%emt 0:00:00]} Kg4 {[%emt 0:00:01]} 59. Rg1+ {
[%emt 0:00:02]} Ng3 {[%emt 0:00:01]} 60. Rg2 {[%emt 0:00:07]} Re2+ {[%emt 0:00:
04]} 61. Kg1 {[%emt 0:00:01]} Re1+ {[%emt 0:00:00]} 0-1

[Event "GER-ch Blitz 2019"]
[Site "Magdeburg"]
[Date "2019.05.25"]
[Round "20.12"]
[White "Kopylov, Daniel"]
[Black "Ehmann, Thilo"]
[Result "0-1"]
[ECO "C47"]
[WhiteElo "2263"]
[BlackElo "2291"]
[Annotator "NA"]
[PlyCount "132"]
[EventDate "2019.05.25"]
[EventType "tourn"]
[EventCountry "GER"]
[Tiebreak "Number of wins+Number of black wins"]
[SourceTitle "playchess.com"]
[Source "ChessBase"]
[SourceQuality "1"]
[TimeControl "180+2"]

1. e4 {[%emt 0:00:00]} e5 {[%emt 0:00:00]} 2. Nf3 {[%emt 0:00:00]} Nc6 {
[%emt 0:00:00]} 3. Nc3 {[%emt 0:00:01]} Nf6 {[%emt 0:00:03]} 4. d4 {[%emt 0:00:
00]} exd4 {[%emt 0:00:02]} 5. Nxd4 {[%emt 0:00:01]} Bb4 {[%emt 0:00:12]} 6.
Nxc6 {[%emt 0:00:02]} bxc6 {[%emt 0:00:01]} 7. Bd3 {[%emt 0:00:01]} d6 {
[%emt 0:00:18]} 8. O-O {[%emt 0:00:03]} Ng4 {[%emt 0:00:08]} 9. h3 {[%emt 0:00:
25]} Ne5 {[%emt 0:00:01]} 10. f4 {[%emt 0:00:04]} Bc5+ {[%emt 0:00:05]} 11. Kh1
{[%emt 0:00:03]} Ng4 {[%emt 0:00:21]} 12. Qf3 {[%emt 0:00:06]} Qh4 {[%emt 0:00:
25]} 13. Na4 {[%emt 0:00:12]} Nf2+ {[%emt 0:00:22]} 14. Kh2 {[%emt 0:00:11]}
Nxd3 {[%emt 0:00:17]} 15. Qxd3 {[%emt 0:00:24]} Bb6 {[%emt 0:00:01]} 16. Nxb6 {
[%emt 0:00:01]} axb6 {[%emt 0:00:01]} 17. Qc3 {[%emt 0:00:01]} O-O {[%emt 0:00:
22]} 18. Qxc6 {[%emt 0:00:02]} Ba6 {[%emt 0:00:05]} 19. Rf3 {[%emt 0:00:14]}
Qe1 {[%emt 0:00:09]} 20. b3 {[%emt 0:00:19]} Rfe8 {[%emt 0:00:10]} 21. Bb2 {
[%emt 0:00:11]} Qxe4 {[%emt 0:00:09]} 22. Qxc7 {[%emt 0:00:17]} Rac8 {[%emt 0:
00:08]} 23. Qxd6 {[%emt 0:00:37]} Rxc2 {[%emt 0:00:08]} 24. Qd4 {[%emt 0:00:01]
} Qxd4 25. Bxd4 {[%emt 0:00:01]} Ree2 {[%emt 0:00:06]} 26. Rg3 {[%emt 0:00:01]}
Bb7 {[%emt 0:00:01]} 27. Rxg7+ {[%emt 0:00:02]} Kf8 {[%emt 0:00:00]} 28. Rg1 {
[%emt 0:00:11]} Rcd2 {[%emt 0:00:01]} 29. Bf6 {[%emt 0:00:04]} Re6 {[%emt 0:00:
02]} 30. Ba1 {[%emt 0:00:08]} Rxa2 {[%emt 0:00:03]} 31. Rxh7 {[%emt 0:00:01]}
Rg6 {[%emt 0:00:01]} 32. h4 {[%emt 0:00:09]} Raxg2+ {[%emt 0:00:05]} 33. Rxg2 {
[%emt 0:00:01]} Rxg2+ {[%emt 0:00:01]} 34. Kh3 {[%emt 0:00:01]} Rg1 {[%emt 0:
00:02]} 35. Bd4 {[%emt 0:00:00]} Rb1 {[%emt 0:00:02]} 36. Bxb6 {[%emt 0:00:03]}
Rxb3+ {[%emt 0:00:02]} 37. Kg4 {[%emt 0:00:00]} Rxb6 {[%emt 0:00:01]} 38. Rh8+
{[%emt 0:00:02]} Kg7 {[%emt 0:00:01]} 39. Rd8 {[%emt 0:00:06]} Rg6+ 40. Kh3 {
[%emt 0:00:03]} Be4 {[%emt 0:00:03]} 41. Rd4 {[%emt 0:00:02]} Bf5+ {[%emt 0:00:
01]} 42. Kh2 {[%emt 0:00:01]} Rg4 {[%emt 0:00:01]} 43. Rd5 {[%emt 0:00:04]}
Rxh4+ {[%emt 0:00:02]} 44. Kg3 {[%emt 0:00:00]} Rg4+ {[%emt 0:00:01]} 45. Kf3 {
[%emt 0:00:01]} Kg6 {[%emt 0:00:02]} 46. Rd6+ {[%emt 0:00:00]} f6 {[%emt 0:00:
01]} 47. Rd8 {[%emt 0:00:02]} Rh4 {[%emt 0:00:01]} 48. Rg8+ {[%emt 0:00:02]}
Kf7 {[%emt 0:00:00]} 49. Rb8 {[%emt 0:00:01]} Rh3+ {[%emt 0:00:02]} 50. Kg2 {
[%emt 0:00:01]} Rc3 {[%emt 0:00:01]} 51. Rb7+ {[%emt 0:00:01]} Kg6 {[%emt 0:00:
01]} 52. Rb8 {[%emt 0:00:02]} Be4+ {[%emt 0:00:01]} 53. Kh2 {[%emt 0:00:01]}
Kf5 {[%emt 0:00:01]} 54. Rb6 {[%emt 0:00:02]} Rf3 {[%emt 0:00:03]} 55. Rb5+ {
[%emt 0:00:02]} Kxf4 {[%emt 0:00:01]} 56. Rb6 {[%emt 0:00:01]} f5 {[%emt 0:00:
01]} 57. Rb4 {[%emt 0:00:02]} Rc3 {[%emt 0:00:02]} 58. Kg1 {[%emt 0:00:01]} Ke3
{[%emt 0:00:02]} 59. Rb8 {[%emt 0:00:03]} Rc1+ {[%emt 0:00:01]} 60. Kh2 {
[%emt 0:00:01]} Rh1+ {[%emt 0:00:02]} 61. Kg3 {[%emt 0:00:01]} f4+ {[%emt 0:00:
01]} 62. Kg4 {[%emt 0:00:00]} Rg1+ {[%emt 0:00:01]} 63. Kh3 {[%emt 0:00:01]} f3
{[%emt 0:00:02]} 64. Rb3+ {[%emt 0:00:04]} Kf4 {[%emt 0:00:03]} 65. Kh2 {
[%emt 0:00:01]} f2 {[%emt 0:00:06]} 66. Rg3 {[%emt 0:00:03]} Rh1# 0-1

[Event "GER-ch Blitz 2019"]
[Site "Magdeburg"]
[Date "2019.05.25"]
[Round "20.13"]
[White "Kopylov, Michael"]
[Black "Zelbel, Patrick"]
[Result "1/2-1/2"]
[ECO "A64"]
[WhiteElo "2413"]
[BlackElo "2439"]
[Annotator "NA"]
[PlyCount "81"]
[EventDate "2019.05.25"]
[EventType "tourn"]
[EventCountry "GER"]
[Tiebreak "Number of wins+Number of black wins"]
[SourceTitle "playchess.com"]
[Source "ChessBase"]
[SourceQuality "1"]
[TimeControl "180+2"]

1. d4 {[%emt 0:00:00]} Nf6 {[%emt 0:00:00]} 2. c4 {[%emt 0:00:00]} e6 {[%emt 0:
00:00]} 3. g3 {[%emt 0:00:00]} c5 {[%emt 0:00:00]} 4. d5 {[%emt 0:00:06]} exd5
{[%emt 0:00:00]} 5. cxd5 {[%emt 0:00:01]} d6 {[%emt 0:00:01]} 6. Nc3 {[%emt 0:
00:01]} g6 {[%emt 0:00:00]} 7. Bg2 Bg7 8. Nf3 {[%emt 0:00:02]} O-O {[%emt 0:00:
01]} 9. Nd2 {[%emt 0:00:01]} a6 {[%emt 0:00:05]} 10. a4 {[%emt 0:00:01]} Nbd7 {
[%emt 0:00:10]} 11. O-O {[%emt 0:00:02]} Re8 {[%emt 0:00:01]} 12. h3 {[%emt 0:
00:02]} Rb8 {[%emt 0:00:02]} 13. Nc4 {[%emt 0:00:01]} Ne5 {[%emt 0:00:03]} 14.
Na3 {[%emt 0:00:01]} Nh5 {[%emt 0:00:03]} 15. e4 {[%emt 0:00:01]} Bd7 {[%emt 0:
00:26]} 16. a5 {[%emt 0:00:02]} b5 {[%emt 0:00:03]} 17. axb6 {[%emt 0:00:01]}
Bb5 {[%emt 0:00:08]} 18. Naxb5 {[%emt 0:00:21]} axb5 {[%emt 0:00:01]} 19. Nxb5
{[%emt 0:00:03]} Qxb6 {[%emt 0:00:01]} 20. Na3 {[%emt 0:00:01]} c4 {[%emt 0:00:
21]} 21. Kh2 {[%emt 0:00:08]} Qb3 {[%emt 0:00:35]} 22. Qxb3 {[%emt 0:00:38]}
Rxb3 {[%emt 0:00:01]} 23. g4 {[%emt 0:00:01]} Nf6 {[%emt 0:00:17]} 24. f4 {
[%emt 0:00:04]} Nd3 {[%emt 0:00:06]} 25. Nxc4 {[%emt 0:00:12]} Nxe4 {[%emt 0:
00:01]} 26. Bxe4 {[%emt 0:00:06]} Rxe4 {[%emt 0:00:02]} 27. Ra8+ {[%emt 0:00:
11]} Bf8 {[%emt 0:00:01]} 28. Nxd6 {[%emt 0:00:46]} Re2+ {[%emt 0:00:03]} 29.
Kg1 {[%emt 0:00:15]} Ne1 {[%emt 0:00:39]} 30. Rf2 {[%emt 0:00:42]} Rxf2 {
[%emt 0:00:28]} 31. Kxf2 {[%emt 0:00:01]} Nd3+ {[%emt 0:00:00]} 32. Ke2 {
[%emt 0:00:00]} Nxc1+ 33. Kd2 Nd3 {[%emt 0:00:00]} 34. Kc2 {[%emt 0:00:03]} Nc5
{[%emt 0:00:00]} 35. Ne4 {[%emt 0:00:09]} Rb5 {[%emt 0:00:00]} 36. Nf6+ {
[%emt 0:00:01]} Kg7 {[%emt 0:00:00]} 37. g5 {[%emt 0:00:01]} Nb7 {[%emt 0:00:
00]} 38. Ne8+ {[%emt 0:00:02]} Kg8 {[%emt 0:00:00]} 39. Nf6+ {[%emt 0:00:01]}
Kg7 {[%emt 0:00:00]} 40. Ne8+ {[%emt 0:00:01]} Kg8 {[%emt 0:00:00]} 41. Nf6+
1/2-1/2

[Event "GER-ch Blitz 2019"]
[Site "Magdeburg"]
[Date "2019.05.25"]
[Round "20.14"]
[White "Schulze, Marc"]
[Black "Kirchner, Thomas"]
[Result "0-1"]
[ECO "A45"]
[WhiteElo "2220"]
[BlackElo "2311"]
[Annotator "NA"]
[PlyCount "40"]
[EventDate "2019.05.25"]
[EventType "tourn"]
[EventCountry "GER"]
[Tiebreak "Number of wins+Number of black wins"]
[SourceTitle "playchess.com"]
[Source "ChessBase"]
[SourceQuality "1"]
[TimeControl "180+2"]

1. d4 {[%emt 0:00:00]} Nf6 {[%emt 0:00:00]} 2. Bf4 {[%emt 0:00:01]} b6 {
[%emt 0:00:00]} 3. e3 {[%emt 0:00:01]} Bb7 {[%emt 0:00:00]} 4. Nf3 d6 5. Nbd2 {
[%emt 0:00:04]} Nbd7 {[%emt 0:00:01]} 6. Bd3 {[%emt 0:00:02]} g6 {[%emt 0:00:
01]} 7. Qe2 {[%emt 0:00:01]} Bg7 {[%emt 0:00:03]} 8. h3 {[%emt 0:00:01]} O-O {
[%emt 0:00:02]} 9. O-O {[%emt 0:00:01]} Re8 {[%emt 0:00:01]} 10. Bg3 {[%emt 0:
00:15]} e5 {[%emt 0:00:01]} 11. dxe5 {[%emt 0:00:02]} dxe5 {[%emt 0:00:01]} 12.
Ba6 {[%emt 0:00:01]} Qc8 {[%emt 0:00:07]} 13. Bxb7 Qxb7 {[%emt 0:00:01]} 14. e4
{[%emt 0:00:05]} Nh5 {[%emt 0:00:09]} 15. Bh2 {[%emt 0:00:11]} Nc5 {[%emt 0:00:
04]} 16. Rfe1 {[%emt 0:00:20]} Rad8 {[%emt 0:00:13]} 17. Nc4 {[%emt 0:00:16]}
Nf4 {[%emt 0:00:08]} 18. Qf1 {[%emt 0:00:01]} Nxe4 {[%emt 0:00:17]} 19. Ncxe5 {
[%emt 0:00:01]} Bxe5 {[%emt 0:00:16]} 20. Nxe5 {[%emt 0:00:02]} Nd2 {[%emt 0:
00:06]} 0-1

[Event "GER-ch Blitz 2019"]
[Site "Magdeburg"]
[Date "2019.05.25"]
[Round "20.15"]
[White "Heidrich, Manfred"]
[Black "Svane, Frederik"]
[Result "0-1"]
[ECO "B22"]
[WhiteElo "2351"]
[BlackElo "2342"]
[Annotator "NA"]
[PlyCount "74"]
[EventDate "2019.05.25"]
[EventType "tourn"]
[EventCountry "GER"]
[Tiebreak "Number of wins+Number of black wins"]
[SourceTitle "playchess.com"]
[Source "ChessBase"]
[SourceQuality "1"]
[TimeControl "180+2"]

1. e4 {[%emt 0:00:00]} c5 {[%emt 0:00:00]} 2. c3 {[%emt 0:00:00]} e6 {[%emt 0:
00:01]} 3. d4 {[%emt 0:00:01]} d5 {[%emt 0:00:02]} 4. exd5 {[%emt 0:00:01]}
exd5 {[%emt 0:00:01]} 5. Nf3 {[%emt 0:00:01]} Nc6 {[%emt 0:00:01]} 6. Be3 {
[%emt 0:00:02]} c4 {[%emt 0:00:08]} 7. b3 {[%emt 0:00:01]} cxb3 {[%emt 0:00:07]
} 8. axb3 {[%emt 0:00:02]} Bd6 {[%emt 0:00:02]} 9. Bd3 {[%emt 0:00:07]} Nf6 {
[%emt 0:00:01]} 10. h3 {[%emt 0:00:06]} O-O {[%emt 0:00:03]} 11. O-O {[%emt 0:
00:01]} Re8 {[%emt 0:00:08]} 12. Re1 {[%emt 0:00:05]} Bd7 {[%emt 0:00:13]} 13.
Nbd2 {[%emt 0:00:02]} Rc8 {[%emt 0:00:02]} 14. Nf1 {[%emt 0:00:23]} h6 {
[%emt 0:00:09]} 15. Qd2 {[%emt 0:00:02]} Qc7 {[%emt 0:00:08]} 16. b4 {[%emt 0:
00:42]} Ne4 {[%emt 0:00:02]} 17. Qb2 {[%emt 0:00:11]} a6 {[%emt 0:00:18]} 18.
Rec1 {[%emt 0:00:13]} Ne7 {[%emt 0:00:19]} 19. c4 {[%emt 0:00:17]} Nf5 {
[%emt 0:00:01]} 20. cxd5 {[%emt 0:00:08]} Qb8 {[%emt 0:00:03]} 21. N1d2 {
[%emt 0:00:11]} Nf6 {[%emt 0:00:32]} 22. Rxc8 {[%emt 0:00:13]} Bxc8 {[%emt 0:
00:01]} 23. Bxf5 {[%emt 0:00:17]} Bxf5 {[%emt 0:00:01]} 24. Nc4 {[%emt 0:00:02]
} Nxd5 {[%emt 0:00:05]} 25. Nxd6 {[%emt 0:00:06]} Qxd6 {[%emt 0:00:01]} 26. Bd2
{[%emt 0:00:19]} Nb6 {[%emt 0:00:02]} 27. Rc1 {[%emt 0:00:07]} Be4 {[%emt 0:00:
03]} 28. Ne5 {[%emt 0:00:05]} Bd5 {[%emt 0:00:05]} 29. Bf4 {[%emt 0:00:04]} Qf6
{[%emt 0:00:03]} 30. Bg3 {[%emt 0:00:02]} Qd8 {[%emt 0:00:07]} 31. Qd2 {
[%emt 0:00:02]} f6 {[%emt 0:00:12]} 32. Nd3 {[%emt 0:00:00]} Nc4 {[%emt 0:00:
10]} 33. Qf4 {[%emt 0:00:01]} Re4 {[%emt 0:00:07]} 34. Qc7 {[%emt 0:00:02]}
Qxc7 {[%emt 0:00:03]} 35. Bxc7 {[%emt 0:00:00]} Rxd4 {[%emt 0:00:02]} 36. Nc5 {
[%emt 0:00:01]} Na3 {[%emt 0:00:17]} 37. Rc3 {[%emt 0:00:02]} Nb5 {[%emt 0:00:
02]} 0-1

[Event "GER-ch Blitz 2019"]
[Site "Magdeburg"]
[Date "2019.05.25"]
[Round "21.1"]
[White "Gustafsson, Jan"]
[Black "Krause, Benedict"]
[Result "1-0"]
[ECO "A31"]
[WhiteElo "2639"]
[BlackElo "2434"]
[Annotator "ChessBase"]
[PlyCount "63"]
[EventDate "2019.05.25"]
[EventType "tourn"]
[EventCountry "GER"]
[Tiebreak "Number of wins+Number of black wins"]
[SourceTitle "playchess.com"]
[Source "ChessBase"]
[SourceQuality "1"]
[TimeControl "180+2"]

1. Nf3 {[%emt 0:00:00]} Nf6 {[%emt 0:00:00]} 2. c4 {[%emt 0:00:00]} c5 {
[%emt 0:00:00]} 3. d4 cxd4 {[%emt 0:00:05]} 4. Nxd4 {[%emt 0:00:03]} g6 {
[%emt 0:00:03]} 5. Nc3 {[%emt 0:00:01]} d5 {[%emt 0:00:00]} 6. Nf3 {[%emt 0:00:
03]} Be6 {[%emt 0:00:02]} 7. Ng5 {[%emt 0:00:02]} d4 {[%emt 0:00:01]} 8. Nxe6
fxe6 {[%emt 0:00:01]} 9. Nb1 {[%emt 0:00:03]} Bg7 {[%emt 0:00:02]} 10. g3 {
[%emt 0:00:02]} Nc6 {[%emt 0:00:01]} 11. Bg2 {[%emt 0:00:02]} O-O {[%emt 0:00:
02]} 12. O-O {[%emt 0:00:02]} e5 {[%emt 0:00:04]} 13. Nd2 {[%emt 0:00:03]} Qb6
{[%emt 0:00:03]} 14. b3 {[%emt 0:00:19]} a5 {[%emt 0:00:09]} 15. Ne4 {[%emt 0:
00:05]} Nxe4 {[%emt 0:00:08]} 16. Bxe4 {[%emt 0:00:02]} e6 {[%emt 0:00:08]} 17.
Rb1 {[%emt 0:00:02]} Ne7 {[%emt 0:00:23]} 18. a3 {[%emt 0:00:04]} Qc7 {[%emt 0:
00:02]} 19. Qd3 {[%emt 0:00:04]} Nf5 {[%emt 0:00:04]} 20. Bd2 {[%emt 0:00:07]}
Nd6 {[%emt 0:00:02]} 21. Bg2 {[%emt 0:00:05]} a4 {[%emt 0:00:07]} 22. Rfc1 {
[%emt 0:00:04]} Qf7 {[%emt 0:00:54]} 23. Be1 {[%emt 0:00:01]} Qf5 {[%emt 0:00:
14]} 24. Qxf5 {[%emt 0:00:18]} gxf5 {[%emt 0:00:02]} 25. Bb4 {[%emt 0:00:16]}
Rfd8 {[%emt 0:00:08]} 26. Bxd6 {[%emt 0:00:11]} Rxd6 {[%emt 0:00:14]} 27. c5 {
[%emt 0:00:01]} Rd7 {[%emt 0:00:04]} 28. c6 {[%emt 0:00:01]} bxc6 {[%emt 0:00:
20]} 29. Bxc6 {[%emt 0:00:02]} Rda7 {[%emt 0:00:03]} 30. Bxa8 {[%emt 0:00:02]}
Rxa8 {[%emt 0:00:01]} 31. b4 {[%emt 0:00:01]} e4 {[%emt 0:00:03]} 32. b5 {
[%emt 0:00:01]} 1-0

[Event "GER-ch Blitz 2019"]
[Site "Magdeburg"]
[Date "2019.05.25"]
[Round "21.2"]
[White "Schneider, Ilja"]
[Black "Hebbinghaus, Holger"]
[Result "0-1"]
[ECO "D30"]
[WhiteElo "2494"]
[BlackElo "2310"]
[Annotator "ChessBase"]
[PlyCount "146"]
[EventDate "2019.05.25"]
[EventType "tourn"]
[EventCountry "GER"]
[Tiebreak "Number of wins+Number of black wins"]
[SourceTitle "playchess.com"]
[Source "ChessBase"]
[SourceQuality "1"]
[TimeControl "180+2"]

1. d4 {[%emt 0:00:00]} d5 {[%emt 0:00:00]} 2. c4 {[%emt 0:00:00]} e6 {[%emt 0:
00:00]} 3. Nf3 {[%emt 0:00:01]} a6 {[%emt 0:00:00]} 4. e3 {[%emt 0:00:04]} Nf6
{[%emt 0:00:01]} 5. a3 {[%emt 0:00:06]} b6 {[%emt 0:00:02]} 6. Bd3 {[%emt 0:00:
07]} Bb7 {[%emt 0:00:01]} 7. O-O {[%emt 0:00:02]} Nbd7 {[%emt 0:00:06]} 8. Nc3
{[%emt 0:00:04]} Be7 {[%emt 0:00:41]} 9. Qe2 {[%emt 0:00:02]} O-O {[%emt 0:00:
03]} 10. e4 {[%emt 0:00:10]} dxe4 {[%emt 0:00:09]} 11. Nxe4 {[%emt 0:00:01]} c5
{[%emt 0:00:10]} 12. Rd1 {[%emt 0:00:04]} Qc7 {[%emt 0:00:10]} 13. Bg5 {
[%emt 0:00:01]} Rfe8 {[%emt 0:00:19]} 14. Rac1 {[%emt 0:00:13]} Rad8 {[%emt 0:
00:31]} 15. h3 h6 {[%emt 0:00:05]} 16. Bh4 {[%emt 0:00:42]} Nxe4 17. Bxe7 {
[%emt 0:00:09]} Rxe7 {[%emt 0:00:11]} 18. Bxe4 {[%emt 0:00:01]} Bxe4 {[%emt 0:
00:04]} 19. Qxe4 {[%emt 0:00:06]} Nf6 20. Qe5 cxd4 {[%emt 0:00:18]} 21. Qxc7 {
[%emt 0:00:07]} Rxc7 {[%emt 0:00:02]} 22. Rxd4 {[%emt 0:00:01]} Rxd4 {[%emt 0:
00:06]} 23. Nxd4 {[%emt 0:00:01]} Kf8 {[%emt 0:00:07]} 24. Kf1 {[%emt 0:00:02]}
Rd7 {[%emt 0:00:05]} 25. Nf3 {[%emt 0:00:15]} Ne4 {[%emt 0:00:06]} 26. Ke2 {
[%emt 0:00:20]} f6 {[%emt 0:00:06]} 27. Ke3 {[%emt 0:00:02]} Nd6 {[%emt 0:00:
06]} 28. c5 {[%emt 0:00:24]} Rc7 {[%emt 0:00:09]} 29. Nd4 {[%emt 0:00:04]} Kf7
{[%emt 0:00:06]} 30. Nb3 {[%emt 0:00:04]} Nf5+ {[%emt 0:00:03]} 31. Ke4 {
[%emt 0:00:12]} bxc5 {[%emt 0:00:04]} 32. Nxc5 {[%emt 0:00:03]} Nd6+ {[%emt 0:
00:03]} 33. Ke3 {[%emt 0:00:09]} a5 34. b4 {[%emt 0:00:08]} axb4 {[%emt 0:00:
04]} 35. axb4 {[%emt 0:00:00]} Nb7 {[%emt 0:00:03]} 36. Kd4 {[%emt 0:00:04]}
Ke7 {[%emt 0:00:01]} 37. Ra1 {[%emt 0:00:03]} Nd6 {[%emt 0:00:02]} 38. Ra6 {
[%emt 0:00:04]} e5+ {[%emt 0:00:06]} 39. Kd5 {[%emt 0:00:02]} Nb5 {[%emt 0:00:
02]} 40. Re6+ {[%emt 0:00:04]} Kf7 {[%emt 0:00:01]} 41. Rb6 {[%emt 0:00:01]}
Nc3+ {[%emt 0:00:04]} 42. Kd6 {[%emt 0:00:01]} Rc8 {[%emt 0:00:02]} 43. Rb7+ {
[%emt 0:00:01]} Kg6 {[%emt 0:00:01]} 44. f3 {[%emt 0:00:05]} h5 {[%emt 0:00:01]
} 45. b5 {[%emt 0:00:08]} Rd8+ {[%emt 0:00:04]} 46. Nd7 {[%emt 0:00:02]} e4 {
[%emt 0:00:02]} 47. fxe4 {[%emt 0:00:02]} Nxe4+ {[%emt 0:00:00]} 48. Kc7 {
[%emt 0:00:02]} Re8 {[%emt 0:00:04]} 49. b6 {[%emt 0:00:01]} Kf5 {[%emt 0:00:
03]} 50. Rb8 {[%emt 0:00:02]} Re6 {[%emt 0:00:03]} 51. Rg8 {[%emt 0:00:03]} Nd6
{[%emt 0:00:02]} 52. Rxg7 {[%emt 0:00:04]} Ne8+ {[%emt 0:00:01]} 53. Kd8 {
[%emt 0:00:03]} Nxg7 {[%emt 0:00:01]} 54. b7 {[%emt 0:00:00]} Re8+ {[%emt 0:00:
01]} 55. Kc7 {[%emt 0:00:01]} Ne6+ {[%emt 0:00:01]} 56. Kd6 {[%emt 0:00:01]}
Nf4 {[%emt 0:00:01]} 57. Nb6 {[%emt 0:00:05]} Rb8 {[%emt 0:00:01]} 58. Kc7 {
[%emt 0:00:01]} Rxb7+ 59. Kxb7 {[%emt 0:00:01]} Nxg2 {[%emt 0:00:02]} 60. Kc6 {
[%emt 0:00:01]} Nf4 {[%emt 0:00:01]} 61. h4 {[%emt 0:00:01]} Ng6 {[%emt 0:00:
01]} 62. Kd5 {[%emt 0:00:01]} Nxh4 {[%emt 0:00:01]} 63. Nc4 {[%emt 0:00:01]}
Nf3 {[%emt 0:00:02]} 64. Ne3+ {[%emt 0:00:01]} Kf4 {[%emt 0:00:02]} 65. Ng2+ {
[%emt 0:00:02]} Kg3 {[%emt 0:00:01]} 66. Ne3 {[%emt 0:00:00]} h4 67. Nf5+ Kg4 {
[%emt 0:00:04]} 68. Ne3+ {[%emt 0:00:01]} Kf4 {[%emt 0:00:02]} 69. Ng2+ {
[%emt 0:00:01]} Kg3 {[%emt 0:00:01]} 70. Ne3 {[%emt 0:00:00]} h3 {[%emt 0:00:
01]} 71. Ke6 {[%emt 0:00:01]} Ne5 72. Nf1+ {[%emt 0:00:04]} Kf2 {[%emt 0:00:04]
} 73. Nh2 {[%emt 0:00:01]} Kg2 {[%emt 0:00:01]} 0-1